[Event "Late-Titled-Tuesday-Blitz-March-05-2024"]
[Site "Chess.com"]
[Date "2024.03.05"]
[Round "7"]
[White "BillCoe"]
[Black "kai_nov"]
[Result "0-1"]
[WhiteElo "2139"]
[BlackElo "2369"]
[TimeControl "180+1"]
[EndTime "15:15:27 PST"]
[Termination "kai_nov won by checkmate"]

1. e4 {[%clk 0:03:00.9]} 1... c5 {[%clk 0:02:59.9]} 2. Nf3 {[%clk 0:03:00.4]}
2... Nc6 {[%clk 0:02:59.7]} 3. Bb5 {[%clk 0:02:59.4]} 3... e6 {[%clk 0:02:57]}
4. O-O {[%clk 0:02:58.6]} 4... Nge7 {[%clk 0:02:56.8]} 5. Re1 {[%clk 0:02:58.6]}
5... a6 {[%clk 0:02:57.1]} 6. Bf1 {[%clk 0:02:57.9]} 6... d5 {[%clk 0:02:57.2]}
7. exd5 {[%clk 0:02:54.8]} 7... Nxd5 {[%clk 0:02:58.1]} 8. d4 {[%clk 0:02:53.9]}
8... Nf6 {[%clk 0:02:42.6]} 9. c3 {[%clk 0:02:33.8]} 9... cxd4 {[%clk
0:02:29.8]} 10. cxd4 {[%clk 0:02:34.7]} 10... Be7 {[%clk 0:02:30]} 11. Nc3
{[%clk 0:02:33.7]} 11... O-O {[%clk 0:02:26.8]} 12. h3 {[%clk 0:02:33.8]} 12...
b5 {[%clk 0:02:18.1]} 13. a3 {[%clk 0:02:33.2]} 13... Bb7 {[%clk 0:02:18.1]} 14.
Be3 {[%clk 0:02:33.1]} 14... Nd5 {[%clk 0:02:10.4]} 15. Nxd5 {[%clk 0:02:32.1]}
15... Qxd5 {[%clk 0:02:10.1]} 16. Qd2 {[%clk 0:02:21.4]} 16... Rac8 {[%clk
0:02:07.8]} 17. Rad1 {[%clk 0:02:19.8]} 17... Rfd8 {[%clk 0:02:07.6]} 18. Qd3
{[%clk 0:02:00.4]} 18... Bf6 {[%clk 0:02:02.3]} 19. Qb1 {[%clk 0:01:57]} 19...
h6 {[%clk 0:01:50.7]} 20. Bd3 {[%clk 0:01:56.6]} 20... Ne7 {[%clk 0:01:29.2]}
21. Bf4 {[%clk 0:01:42.7]} 21... Qh5 {[%clk 0:01:19.1]} 22. Be4 {[%clk 0:01:38]}
22... Bxe4 {[%clk 0:01:16]} 23. Qxe4 {[%clk 0:01:36.9]} 23... Qd5 {[%clk
0:00:57.3]} 24. Qd3 {[%clk 0:01:25.4]} 24... Nf5 {[%clk 0:00:51.2]} 25. Be3
{[%clk 0:01:11]} 25... Qc4 {[%clk 0:00:36.1]} 26. Qb1 {[%clk 0:01:02.3]} 26...
Qc2 {[%clk 0:00:31.2]} 27. Rd2 {[%clk 0:00:54.6]} 27... Qxb1 {[%clk 0:00:27.7]}
28. Rxb1 {[%clk 0:00:55.5]} 28... Rd5 {[%clk 0:00:24.9]} 29. Rbd1 {[%clk
0:00:53.9]} 29... Kf8 {[%clk 0:00:22.9]} 30. g4 {[%clk 0:00:49]} 30... Nd6
{[%clk 0:00:19.2]} 31. Kg2 {[%clk 0:00:44.9]} 31... Nc4 {[%clk 0:00:17.3]} 32.
Re2 {[%clk 0:00:41.2]} 32... Rcd8 {[%clk 0:00:15.8]} 33. Rc2 {[%clk 0:00:31.1]}
33... e5 {[%clk 0:00:13.7]} 34. g5 {[%clk 0:00:18.9]} 34... hxg5 {[%clk
0:00:13]} 35. Bxg5 {[%clk 0:00:16.6]} 35... Bxg5 {[%clk 0:00:11.7]} 36. Nxg5
{[%clk 0:00:16.5]} 36... exd4 {[%clk 0:00:12.1]} 37. Ne4 {[%clk 0:00:16.2]}
37... d3 {[%clk 0:00:11.9]} 38. Rc3 {[%clk 0:00:16.2]} 38... Nxb2 {[%clk
0:00:11.2]} 39. Rb3 {[%clk 0:00:15.1]} 39... Nc4 {[%clk 0:00:11.7]} 40. f3
{[%clk 0:00:14.1]} 40... f6 {[%clk 0:00:11.3]} 41. Kf2 {[%clk 0:00:12.8]} 41...
R8d7 {[%clk 0:00:11.6]} 42. Nc3 {[%clk 0:00:09.9]} 42... Re5 {[%clk 0:00:10.2]}
43. Ne4 {[%clk 0:00:09.3]} 43... Red5 {[%clk 0:00:10.1]} 44. Nc3 {[%clk
0:00:09.2]} 44... Rd4 {[%clk 0:00:10.6]} 45. Ne4 {[%clk 0:00:08.5]} 45... Kf7
{[%clk 0:00:11.1]} 46. Nc5 {[%clk 0:00:08.5]} 46... R7d6 {[%clk 0:00:11.6]} 47.
Nb7 {[%clk 0:00:08.4]} 47... Re6 {[%clk 0:00:11.3]} 48. Nc5 {[%clk 0:00:02.3]}
48... Re2+ {[%clk 0:00:11.1]} 49. Kg3 {[%clk 0:00:02.6]} 49... Ne3 {[%clk
0:00:10.3]} 50. Rbxd3 {[%clk 0:00:01.7]} 50... Rg2# {[%clk 0:00:10.5]} 0-1

[Event "Late-Titled-Tuesday-Blitz-March-05-2024"]
[Site "Chess.com"]
[Date "2024.03.05"]
[Round "7"]
[White "DraningWaterHi"]
[Black "ShahMatKanal"]
[Result "0-1"]
[WhiteElo "2196"]
[BlackElo "2487"]
[TimeControl "180+1"]
[EndTime "15:15:30 PST"]
[Termination "ShahMatKanal won by checkmate"]

1. d4 {[%clk 0:03:00.9]} 1... f5 {[%clk 0:02:30.3]} 2. c4 {[%clk 0:02:57.9]}
2... e6 {[%clk 0:02:27.4]} 3. Nc3 {[%clk 0:02:57.1]} 3... Nf6 {[%clk 0:02:25.3]}
4. Nf3 {[%clk 0:02:56.3]} 4... d5 {[%clk 0:02:22.6]} 5. Bf4 {[%clk 0:02:55.7]}
5... c6 {[%clk 0:02:20.1]} 6. Ne5 {[%clk 0:02:53.4]} 6... Bb4 {[%clk 0:02:15.5]}
7. Qc2 {[%clk 0:02:38.3]} 7... Qa5 {[%clk 0:02:08.9]} 8. f3 {[%clk 0:02:32.8]}
8... Nbd7 {[%clk 0:02:00.1]} 9. e3 {[%clk 0:02:20.4]} 9... Nxe5 {[%clk
0:01:53.8]} 10. Bxe5 {[%clk 0:02:20.3]} 10... O-O {[%clk 0:01:51.6]} 11. Bd3
{[%clk 0:02:20.1]} 11... dxc4 {[%clk 0:01:36.1]} 12. Bxc4 {[%clk 0:02:17.4]}
12... Nd5 {[%clk 0:01:36.5]} 13. Rc1 {[%clk 0:02:09.4]} 13... Nxe3 {[%clk
0:01:32.6]} 14. Qb3 {[%clk 0:02:07.8]} 14... Nxc4 {[%clk 0:01:06.4]} 15. Qxc4
{[%clk 0:02:07.3]} 15... Be7 {[%clk 0:00:48.8]} 16. O-O {[%clk 0:01:57.9]} 16...
Qd8 {[%clk 0:00:48.5]} 17. Rcd1 {[%clk 0:01:57]} 17... Qe8 {[%clk 0:00:47.9]}
18. f4 {[%clk 0:01:56.7]} 18... b5 {[%clk 0:00:41.7]} 19. Qb3 {[%clk 0:01:55.7]}
19... a5 {[%clk 0:00:40.8]} 20. a4 {[%clk 0:01:55.3]} 20... b4 {[%clk
0:00:39.5]} 21. Nb1 {[%clk 0:01:55.5]} 21... Qg6 {[%clk 0:00:34.1]} 22. Nd2
{[%clk 0:01:52]} 22... Ba6 {[%clk 0:00:33]} 23. Rf2 {[%clk 0:01:51.3]} 23... Qg4
{[%clk 0:00:27.8]} 24. Nf3 {[%clk 0:01:49.7]} 24... Qg6 {[%clk 0:00:21.6]} 25.
Re1 {[%clk 0:01:44.3]} 25... c5 {[%clk 0:00:20.4]} 26. Bc7 {[%clk 0:01:39.5]}
26... c4 {[%clk 0:00:19]} 27. Qc2 {[%clk 0:01:39.1]} 27... Bd8 {[%clk
0:00:14.6]} 28. Ne5 {[%clk 0:01:34.3]} 28... Qe8 {[%clk 0:00:12.4]} 29. Bxd8
{[%clk 0:01:34]} 29... Rxd8 {[%clk 0:00:11.6]} 30. Nxc4 {[%clk 0:01:31.8]} 30...
Rc8 {[%clk 0:00:10.2]} 31. b3 {[%clk 0:01:31.1]} 31... Qc6 {[%clk 0:00:09.9]}
32. Rc1 {[%clk 0:01:19.1]} 32... Rfd8 {[%clk 0:00:09.3]} 33. Rd2 {[%clk
0:01:18.2]} 33... Bb7 {[%clk 0:00:07.1]} 34. Nxa5 {[%clk 0:01:13.7]} 34... Qd5
{[%clk 0:00:04.1]} 35. Qd1 {[%clk 0:01:00.3]} 35... Qxa5 {[%clk 0:00:03.2]} 36.
Rxc8 {[%clk 0:00:59.7]} 36... Rxc8 {[%clk 0:00:04.1]} 37. Qe2 {[%clk 0:00:58.4]}
37... Qd5 {[%clk 0:00:04]} 38. h3 {[%clk 0:00:57.2]} 38... h6 {[%clk 0:00:03.4]}
39. Ra2 {[%clk 0:00:56.1]} 39... Kh7 {[%clk 0:00:03.5]} 40. a5 {[%clk
0:00:56.5]} 40... Rc1+ {[%clk 0:00:02.1]} 41. Kh2 {[%clk 0:00:56.5]} 41... Qxd4
{[%clk 0:00:01.7]} 42. Qd2 {[%clk 0:00:50.8]} 42... Qg1+ {[%clk 0:00:01.2]} 43.
Kg3 {[%clk 0:00:50.3]} 43... Rd1 {[%clk 0:00:02.1]} 44. Qf2 {[%clk 0:00:49.6]}
44... Qxf2+ {[%clk 0:00:01.8]} 45. Kxf2 {[%clk 0:00:50.1]} 45... Rd6 {[%clk
0:00:01.7]} 46. a6 {[%clk 0:00:51]} 46... Bxa6 {[%clk 0:00:01.9]} 47. Ra5 {[%clk
0:00:51.2]} 47... Rb6 {[%clk 0:00:02.1]} 48. Ra4 {[%clk 0:00:51.5]} 48... Kg6
{[%clk 0:00:02.4]} 49. Ke3 {[%clk 0:00:50.9]} 49... Kf6 {[%clk 0:00:02.9]} 50.
Kd4 {[%clk 0:00:51.4]} 50... g5 {[%clk 0:00:02.8]} 51. Kc5 {[%clk 0:00:51.8]}
51... Rb5+ {[%clk 0:00:02]} 52. Kc6 {[%clk 0:00:51.4]} 52... Rd5 {[%clk
0:00:01.7]} 53. Rxa6 {[%clk 0:00:51.3]} 53... gxf4 {[%clk 0:00:02.4]} 54. Ra4
{[%clk 0:00:51.4]} 54... Rd4 {[%clk 0:00:02.7]} 55. Kc5 {[%clk 0:00:51.1]} 55...
Ke5 {[%clk 0:00:02.8]} 56. Rxb4 {[%clk 0:00:50.3]} 56... Rd2 {[%clk 0:00:02.3]}
57. g4 {[%clk 0:00:45.3]} 57... f3 {[%clk 0:00:02.1]} 58. gxf5 {[%clk
0:00:45.2]} 58... f2 {[%clk 0:00:02.4]} 59. fxe6 {[%clk 0:00:45]} 59... f1=Q
{[%clk 0:00:02.4]} 60. e7 {[%clk 0:00:45.9]} 60... Qf2+ {[%clk 0:00:02.3]} 61.
Kc6 {[%clk 0:00:46]} 61... Qf7 {[%clk 0:00:02.4]} 62. Rb5+ {[%clk 0:00:45.4]}
62... Ke6 {[%clk 0:00:02.9]} 63. Rb7 {[%clk 0:00:44.4]} 63... Qe8+ {[%clk
0:00:03.2]} 64. Kb6 {[%clk 0:00:44.1]} 64... Rd6+ {[%clk 0:00:03.1]} 65. Kc5
{[%clk 0:00:43.1]} 65... Qc8+ {[%clk 0:00:03.1]} 66. Kb5 {[%clk 0:00:40.2]}
66... Qxb7+ {[%clk 0:00:03.2]} 67. Ka5 {[%clk 0:00:41.1]} 67... Ra6# {[%clk
0:00:02.6]} 0-1

[Event "Late-Titled-Tuesday-Blitz-March-05-2024"]
[Site "Chess.com"]
[Date "2024.03.05"]
[Round "7"]
[White "jstopa4"]
[Black "MusicCityMaster"]
[Result "0-1"]
[WhiteElo "2678"]
[BlackElo "2516"]
[TimeControl "180+1"]
[EndTime "15:15:37 PST"]
[Termination "MusicCityMaster won by checkmate"]

1. d4 {[%clk 0:03:00.9]} 1... Nf6 {[%clk 0:02:59.3]} 2. c4 {[%clk 0:03:00.8]}
2... g6 {[%clk 0:02:59.7]} 3. f3 {[%clk 0:03:00.8]} 3... Bg7 {[%clk 0:02:58.9]}
4. e4 {[%clk 0:03:01.2]} 4... d6 {[%clk 0:02:59.5]} 5. Ne2 {[%clk 0:03:01.4]}
5... O-O {[%clk 0:02:59.3]} 6. Nbc3 {[%clk 0:03:01.8]} 6... e5 {[%clk
0:02:57.2]} 7. Bg5 {[%clk 0:02:55.1]} 7... Nbd7 {[%clk 0:02:50.3]} 8. Qd2 {[%clk
0:02:53.3]} 8... c6 {[%clk 0:02:34.8]} 9. h4 {[%clk 0:02:51.1]} 9... Qa5 {[%clk
0:02:32.9]} 10. O-O-O {[%clk 0:02:47.9]} 10... exd4 {[%clk 0:02:21.6]} 11. Nxd4
{[%clk 0:02:45.6]} 11... Nc5 {[%clk 0:02:21.3]} 12. Nc2 {[%clk 0:02:38.8]} 12...
Na4 {[%clk 0:02:03.4]} 13. b4 {[%clk 0:02:02.8]} 13... Nxc3 {[%clk 0:01:24.6]}
14. bxa5 {[%clk 0:01:55.8]} 14... Nxa2+ {[%clk 0:01:24.6]} 15. Kb1 {[%clk
0:01:43.5]} 15... Nxe4 {[%clk 0:01:24.2]} 16. Kxa2 {[%clk 0:01:18.2]} 16... Nxd2
{[%clk 0:01:21.9]} 17. Rxd2 {[%clk 0:01:19.1]} 17... d5 {[%clk 0:01:15.9]} 18.
c5 {[%clk 0:01:07.9]} 18... Re8 {[%clk 0:01:12.4]} 19. Kb3 {[%clk 0:01:03.5]}
19... b6 {[%clk 0:01:10.1]} 20. axb6 {[%clk 0:00:47.7]} 20... axb6 {[%clk
0:01:11]} 21. cxb6 {[%clk 0:00:48]} 21... Rb8 {[%clk 0:01:10.3]} 22. Be3 {[%clk
0:00:47.5]} 22... Be6 {[%clk 0:01:01.9]} 23. Bc5 {[%clk 0:00:46.3]} 23... Bf8
{[%clk 0:00:54.9]} 24. Bxf8 {[%clk 0:00:44.8]} 24... Kxf8 {[%clk 0:00:44.7]} 25.
Bd3 {[%clk 0:00:38.1]} 25... Rxb6+ {[%clk 0:00:44.6]} 26. Kc3 {[%clk 0:00:38.6]}
26... c5 {[%clk 0:00:42.9]} 27. Rdd1 {[%clk 0:00:32.8]} 27... c4 {[%clk
0:00:35.1]} 28. Be2 {[%clk 0:00:27]} 28... Rb3+ {[%clk 0:00:29.9]} 29. Kd2
{[%clk 0:00:27.2]} 29... Rb2 {[%clk 0:00:19.7]} 30. Kc1 {[%clk 0:00:23.3]} 30...
Reb8 {[%clk 0:00:19]} 31. Kd2 {[%clk 0:00:17.5]} 31... Bf5 {[%clk 0:00:18.4]}
32. Rc1 {[%clk 0:00:18]} 32... Ra2 {[%clk 0:00:15.2]} 33. g4 {[%clk 0:00:18.1]}
33... Bd7 {[%clk 0:00:13.6]} 34. Ra1 {[%clk 0:00:17.5]} 34... Rab2 {[%clk
0:00:12.9]} 35. Bd1 {[%clk 0:00:16.9]} 35... Re8 {[%clk 0:00:10.2]} 36. Kc3
{[%clk 0:00:16.6]} 36... Rb3+ {[%clk 0:00:09]} 37. Kd4 {[%clk 0:00:17.1]} 37...
Rd3+ {[%clk 0:00:09.4]} 38. Kc5 {[%clk 0:00:17.7]} 38... Rc8+ {[%clk 0:00:09.8]}
39. Kd6 {[%clk 0:00:18.2]} 39... Be6 {[%clk 0:00:09.1]} 40. Nb4 {[%clk
0:00:17.6]} 40... Rd8+ {[%clk 0:00:08.3]} 41. Kc7 {[%clk 0:00:16.8]} 41... Rd7+
{[%clk 0:00:07.6]} 42. Kc6 {[%clk 0:00:17.7]} 42... Re3 {[%clk 0:00:05.3]} 43.
Ra8+ {[%clk 0:00:17.5]} 43... Kg7 {[%clk 0:00:05.3]} 44. Kc5 {[%clk 0:00:17.5]}
44... c3 {[%clk 0:00:05.4]} 45. Bc2 {[%clk 0:00:17.1]} 45... d4 {[%clk
0:00:05.7]} 46. Nd3 {[%clk 0:00:17.4]} 46... Rd5+ {[%clk 0:00:05.2]} 47. Kc6
{[%clk 0:00:17.7]} 47... Re2 {[%clk 0:00:05.6]} 48. Rc1 {[%clk 0:00:17.2]} 48...
Rd2 {[%clk 0:00:05.8]} 49. Nf4 {[%clk 0:00:17.4]} 49... Re5 {[%clk 0:00:05.2]}
50. Nxe6+ {[%clk 0:00:15.6]} 50... Rxe6+ {[%clk 0:00:06.1]} 51. Kd5 {[%clk
0:00:16.1]} 51... d3 {[%clk 0:00:06.1]} 52. Bb3 {[%clk 0:00:16.4]} 52... c2
{[%clk 0:00:05.6]} 53. Kd4 {[%clk 0:00:16.4]} 53... Rd6+ {[%clk 0:00:05.2]} 54.
Kc3 {[%clk 0:00:16.5]} 54... Rf2 {[%clk 0:00:04.9]} 55. Rc8 {[%clk 0:00:15]}
55... d2 {[%clk 0:00:04.9]} 56. Rxc2 {[%clk 0:00:13.6]} 56... d1=Q {[%clk
0:00:05.3]} 57. Kb2 {[%clk 0:00:12.3]} 57... Qd4+ {[%clk 0:00:05.5]} 58. Ka2
{[%clk 0:00:12.4]} 58... Rxc2+ {[%clk 0:00:05.6]} 59. Rxc2 {[%clk 0:00:12]}
59... Ra6+ {[%clk 0:00:06.3]} 60. Kb1 {[%clk 0:00:12.6]} 60... Ra1# {[%clk
0:00:06.9]} 0-1

[Event "Late-Titled-Tuesday-Blitz-March-05-2024"]
[Site "Chess.com"]
[Date "2024.03.05"]
[Round "7"]
[White "Ykow"]
[Black "mac0504"]
[Result "0-1"]
[WhiteElo "2536"]
[BlackElo "2721"]
[TimeControl "180+1"]
[EndTime "15:15:39 PST"]
[Termination "mac0504 won by checkmate"]

1. e4 {[%clk 0:03:00.9]} 1... Nc6 {[%clk 0:02:39.3]} 2. Nf3 {[%clk 0:03:00.8]}
2... d6 {[%clk 0:02:38.2]} 3. d4 {[%clk 0:03:00.2]} 3... Nf6 {[%clk 0:02:35.4]}
4. Nc3 {[%clk 0:02:59.9]} 4... g6 {[%clk 0:02:34]} 5. h3 {[%clk 0:03:00]} 5...
Bg7 {[%clk 0:02:34.1]} 6. Be2 {[%clk 0:02:52.1]} 6... O-O {[%clk 0:02:33.4]} 7.
O-O {[%clk 0:02:52]} 7... e5 {[%clk 0:02:31.1]} 8. Be3 {[%clk 0:02:51.9]} 8...
Qe7 {[%clk 0:02:24.6]} 9. dxe5 {[%clk 0:02:46.8]} 9... dxe5 {[%clk 0:02:20]} 10.
Nd5 {[%clk 0:02:45.2]} 10... Nxd5 {[%clk 0:02:17.5]} 11. exd5 {[%clk 0:02:45]}
11... Nd4 {[%clk 0:02:10]} 12. Bxd4 {[%clk 0:02:31.7]} 12... exd4 {[%clk
0:02:10.9]} 13. Bc4 {[%clk 0:02:32.3]} 13... Qc5 {[%clk 0:02:04.3]} 14. Bb3
{[%clk 0:02:32.1]} 14... a5 {[%clk 0:02:01.4]} 15. a4 {[%clk 0:02:31.9]} 15...
b6 {[%clk 0:01:57.1]} 16. Ng5 {[%clk 0:02:22.5]} 16... Bb7 {[%clk 0:01:57.2]}
17. Qf3 {[%clk 0:02:15.1]} 17... Rad8 {[%clk 0:01:53.2]} 18. Ne4 {[%clk
0:02:14.2]} 18... Qb4 {[%clk 0:01:36.7]} 19. Rfe1 {[%clk 0:01:48.6]} 19... Rd7
{[%clk 0:01:35.2]} 20. Rad1 {[%clk 0:01:24.4]} 20... Rfd8 {[%clk 0:01:30.9]} 21.
Nf6+ {[%clk 0:00:41.3]} 21... Bxf6 {[%clk 0:01:28.3]} 22. Qxf6 {[%clk
0:00:42.2]} 22... Bxd5 {[%clk 0:01:25.7]} 23. Qxd4 {[%clk 0:00:24.8]} 23... Qxd4
{[%clk 0:01:23.2]} 24. Rxd4 {[%clk 0:00:24.7]} 24... Bxb3 {[%clk 0:01:23.8]} 25.
Rxd7 {[%clk 0:00:25.6]} 25... Rxd7 {[%clk 0:01:24.5]} 26. cxb3 {[%clk
0:00:26.4]} 26... Kf8 {[%clk 0:01:22.2]} 27. Rc1 {[%clk 0:00:24.8]} 27... c5
{[%clk 0:01:17.5]} 28. Kf1 {[%clk 0:00:23.3]} 28... Rd2 {[%clk 0:01:14.6]} 29.
Rc3 {[%clk 0:00:21.5]} 29... Rxb2 {[%clk 0:01:14.4]} 30. g4 {[%clk 0:00:21.9]}
30... h6 {[%clk 0:01:02.8]} 31. Kg2 {[%clk 0:00:22]} 31... Ke7 {[%clk
0:00:55.4]} 32. Rf3 {[%clk 0:00:22]} 32... Ke6 {[%clk 0:00:52.8]} 33. h4 {[%clk
0:00:21.3]} 33... c4 {[%clk 0:00:41.5]} 34. bxc4 {[%clk 0:00:20.9]} 34... Rb4
{[%clk 0:00:42.2]} 35. g5 {[%clk 0:00:20.9]} 35... h5 {[%clk 0:00:34.2]} 36.
Rf6+ {[%clk 0:00:20.5]} 36... Ke7 {[%clk 0:00:34.3]} 37. Kg3 {[%clk 0:00:20.4]}
37... Rxa4 {[%clk 0:00:30.4]} 38. Rxb6 {[%clk 0:00:20.6]} 38... Rxc4 {[%clk
0:00:31.2]} 39. Ra6 {[%clk 0:00:21.4]} 39... a4 {[%clk 0:00:17.8]} 40. f3 {[%clk
0:00:21.9]} 40... Rd4 {[%clk 0:00:14.1]} 41. Ra7+ {[%clk 0:00:21.7]} 41... Ke6
{[%clk 0:00:13.9]} 42. Ra6+ {[%clk 0:00:22]} 42... Kd5 {[%clk 0:00:12]} 43. Ra7
{[%clk 0:00:22.6]} 43... Kc5 {[%clk 0:00:09.3]} 44. Rxf7 {[%clk 0:00:22.8]}
44... a3 {[%clk 0:00:08.7]} 45. Ra7 {[%clk 0:00:22.8]} 45... Kb4 {[%clk
0:00:07.7]} 46. f4 {[%clk 0:00:22.5]} 46... Kb3 {[%clk 0:00:08.4]} 47. Rb7+
{[%clk 0:00:19.9]} 47... Rb4 {[%clk 0:00:07.5]} 48. Ra7 {[%clk 0:00:18.7]} 48...
a2 {[%clk 0:00:05.5]} 49. f5 {[%clk 0:00:19.2]} 49... Ra4 {[%clk 0:00:03.9]} 50.
Rb7+ {[%clk 0:00:15.3]} 50... Ka3 {[%clk 0:00:04.3]} 51. fxg6 {[%clk 0:00:13.2]}
51... a1=Q {[%clk 0:00:04.5]} 52. g7 {[%clk 0:00:14.1]} 52... Qc3+ {[%clk
0:00:04.6]} 53. Kf2 {[%clk 0:00:14.1]} 53... Rf4+ {[%clk 0:00:04.9]} 54. Ke2
{[%clk 0:00:14.1]} 54... Qf3+ {[%clk 0:00:05.2]} 55. Kd2 {[%clk 0:00:15]} 55...
Rd4+ {[%clk 0:00:05.3]} 56. Kc2 {[%clk 0:00:14.4]} 56... Qd1+ {[%clk 0:00:05.4]}
57. Kc3 {[%clk 0:00:14]} 57... Qd2# {[%clk 0:00:06.2]} 0-1

[Event "Late-Titled-Tuesday-Blitz-March-05-2024"]
[Site "Chess.com"]
[Date "2024.03.05"]
[Round "7"]
[White "Vesapesa"]
[Black "morte-negra"]
[Result "0-1"]
[WhiteElo "2215"]
[BlackElo "2066"]
[TimeControl "180+1"]
[EndTime "15:15:39 PST"]
[Termination "morte-negra won on time"]

1. e4 {[%clk 0:03:00.9]} 1... c5 {[%clk 0:02:48.9]} 2. Nf3 {[%clk 0:03:00.6]}
2... d6 {[%clk 0:02:49.2]} 3. d4 {[%clk 0:03:00.4]} 3... cxd4 {[%clk 0:02:49.7]}
4. Qxd4 {[%clk 0:03:01.3]} 4... a6 {[%clk 0:02:47.1]} 5. h3 {[%clk 0:03:00.8]}
5... e6 {[%clk 0:02:47.6]} 6. c4 {[%clk 0:03:00]} 6... Nf6 {[%clk 0:02:45]} 7.
Nc3 {[%clk 0:02:59.2]} 7... Qc7 {[%clk 0:02:45.6]} 8. Be2 {[%clk 0:02:56.3]}
8... Be7 {[%clk 0:02:46.1]} 9. O-O {[%clk 0:02:55.9]} 9... O-O {[%clk
0:02:46.6]} 10. b3 {[%clk 0:02:52.8]} 10... b6 {[%clk 0:02:46.2]} 11. Bb2 {[%clk
0:02:52]} 11... Bb7 {[%clk 0:02:46.7]} 12. Rac1 {[%clk 0:02:49.2]} 12... Nc6
{[%clk 0:02:47.1]} 13. Qe3 {[%clk 0:02:45.4]} 13... Nb8 {[%clk 0:02:47.7]} 14.
Nd4 {[%clk 0:02:42.9]} 14... Nbd7 {[%clk 0:02:47.2]} 15. f4 {[%clk 0:02:41]}
15... Rac8 {[%clk 0:02:39]} 16. Bf3 {[%clk 0:02:40.7]} 16... Qb8 {[%clk
0:02:37.5]} 17. f5 {[%clk 0:02:35.2]} 17... Nc5 {[%clk 0:02:08.1]} 18. b4 {[%clk
0:02:18.7]} 18... e5 {[%clk 0:01:52.1]} 19. Nde2 {[%clk 0:01:54.5]} 19... Ncd7
{[%clk 0:01:40.1]} 20. Nd5 {[%clk 0:01:48.6]} 20... Bxd5 {[%clk 0:01:37.8]} 21.
cxd5 {[%clk 0:01:47]} 21... b5 {[%clk 0:01:22.6]} 22. Kh2 {[%clk 0:01:44.9]}
22... Nb6 {[%clk 0:01:20.5]} 23. Qb3 {[%clk 0:01:23.9]} 23... Nc4 {[%clk
0:01:18.6]} 24. Ng3 {[%clk 0:01:03.2]} 24... Nd2 {[%clk 0:01:12.6]} 25. Qd3
{[%clk 0:00:46.7]} 25... Rxc1 {[%clk 0:01:02.3]} 26. Rxc1 {[%clk 0:00:44.6]}
26... Nxf3+ {[%clk 0:00:59.9]} 27. Qxf3 {[%clk 0:00:40.6]} 27... Nd7 {[%clk
0:01:00]} 28. Qc3 {[%clk 0:00:37.5]} 28... Nb6 {[%clk 0:00:46.9]} 29. Qc7 {[%clk
0:00:26.6]} 29... Bg5 {[%clk 0:00:19.6]} 30. Qxb8 {[%clk 0:00:16.2]} 30... Rxb8
{[%clk 0:00:18.9]} 31. Rc6 {[%clk 0:00:15.5]} 31... Nc4 {[%clk 0:00:19.5]} 32.
Bc3 {[%clk 0:00:14.3]} 32... Bf4 {[%clk 0:00:19.7]} 33. Rxa6 {[%clk 0:00:09.5]}
33... h5 {[%clk 0:00:19.9]} 34. h4 {[%clk 0:00:08.8]} 34... Rc8 {[%clk
0:00:16.5]} 35. Be1 {[%clk 0:00:07.3]} 35... Ne3 {[%clk 0:00:15.4]} 36. Kh3
{[%clk 0:00:06.4]} 36... Nc2 {[%clk 0:00:14.4]} 37. Bf2 {[%clk 0:00:04.6]} 37...
Nxb4 {[%clk 0:00:14]} 38. Rb6 {[%clk 0:00:04.6]} 38... Nxa2 {[%clk 0:00:13.4]}
39. Rxb5 {[%clk 0:00:04.6]} 39... Nc3 {[%clk 0:00:12.2]} 40. Rb3 {[%clk
0:00:04.1]} 40... Bxg3 {[%clk 0:00:12.1]} 41. Bxg3 {[%clk 0:00:03.5]} 41... Nxe4
{[%clk 0:00:12.5]} 42. Be1 {[%clk 0:00:02.7]} 42... Rc5 {[%clk 0:00:11]} 43. Rd3
{[%clk 0:00:02.3]} 43... Nf6 {[%clk 0:00:08.9]} 44. Bb4 {[%clk 0:00:02.2]} 44...
Rxd5 {[%clk 0:00:08.9]} 45. Rxd5 {[%clk 0:00:02.2]} 45... Nxd5 {[%clk
0:00:09.5]} 46. Bxd6 {[%clk 0:00:03.1]} 46... e4 {[%clk 0:00:09.7]} 47. Be5
{[%clk 0:00:03]} 47... f6 {[%clk 0:00:10]} 48. Kg3 {[%clk 0:00:03.6]} 48... fxe5
{[%clk 0:00:09]} 49. Kf2 {[%clk 0:00:02.8]} 49... Kf7 {[%clk 0:00:09]} 50. Ke2
{[%clk 0:00:03]} 50... Kf6 {[%clk 0:00:09.4]} 0-1